bitfinex/quotes_ETHUSD_20251004
["timestamp","ask_amount","ask_price","bid_price","bid_amount"]
[1759608120183,0.012,4468.9,4468.8,32.35352528]
[1759608120683,0.012,4468.9,4468.8,32.31972628]
[1759608120849,0.012,4468.9,4468.8,33.98002628]
[1759608121358,0.012,4468.9,4468.8,33.80361528]
[1759608121884,0.012,4468.9,4468.8,33.99012628]
[1759608122184,0.012,4468.9,4468.8,34.01352628]
[1759608122389,0.012,4468.9,4468.8,23.94265328]
[1759608122553,0.012,4468.9,4468.8,34.01352628]
[1759608123358,0.012,4468.9,4468.8,34.88655528]
[1759608124182,0.012,4468.9,4468.8,30.93295528]
[1759608124384,0.012,4468.9,4468.8,33.44995528]
[1759608124591,0.002,4469.7,4468.8,28.06661808]
[1759608124780,0.0076408,4471.6,4469.7,2.87088661]
[1759608124975,0.4742,4470.4,4469.7,28.83175027]
[1759608125291,0.4742,4470.4,4469.7,44.17534816]
[1759608125480,0.4742,4470.4,4469.7,46.08845616]
[1759608125662,0.4742,4470.4,4469.7,46.33120514]
[1759608126585,0.4742,4470.4,4469.7,46.87281214]
[1759608127357,0.4742,4470.4,4469.7,47.30832314]
[1759608128499,0.4742,4470.4,4469.7,47.60812414]
[1759608128897,2.24413135,4471.3,4469.7,47.60812414]
[1759608128898,1e-08,4469.9,4469.8,2.87083656]
[1759608129070,2.23639986,4471.5,4470.2,0.6336]
[1759608129396,0.4742,4470.8,4470.5,3.03626449]
[1759608129558,0.4742,4470.7,4470.3,1.47062682]
[1759608129757,0.4742,4470.6,4470.4,2.517]
[1759608129995,0.4818408,4470.5,4470.4,2.517]
[1759608130701,0.4742,4470.5,4470.4,17.017]
[1759608131760,0.4742,4470.5,4470.4,2.517]
[1759608136769,0.4762,4470.5,4470.4,2.517]
[1759608137953,0.002,4470.5,4470.4,4.75393629]
[1759608138244,0.002,4470.5,4470.4,5.05948795]
[1759608138653,0.002,4470.5,4470.4,19.55948795]
[1759608139606,0.002,4470.5,4470.4,20.03368795]
[1759608139806,0.002,4470.5,4470.4,5.53368795]
[1759608140352,0.002,4470.5,4470.4,20.03368795]
[1759608144750,0.002,4470.5,4470.4,17.79675166]
[1759608145098,0.002,4470.5,4470.4,25.02194723]
[1759608145297,0.01,4470.9,4470.4,26.22461179]
[1759608145538,0.01,4470.9,4470.8,0.6336]
[1759608145701,0.01,4470.9,4470.8,21.25613815]
[1759608145897,0.01,4470.9,4470.8,38.51400469]
[1759608146539,0.01,4470.9,4470.8,54.94824469]
[1759608147417,0.01,4470.9,4470.8,24.94824469]
[1759608147807,0.01,4470.9,4470.8,52.60021769]
[1759608148009,0.01,4470.9,4470.8,52.61521769]
[1759608148618,0.01,4470.9,4470.8,52.78519969]
[1759608149523,0.01,4470.9,4470.8,54.94824469]
[1759608150344,0.01,4470.9,4470.8,56.14468621]
[1759608151054,0.01,4470.9,4470.8,56.39357121]
[1759608152250,0.01,4470.9,4470.8,55.19712969]
[1759608152869,0.01,4471.9,4471.3,0.6336]
[1759608153188,0.01,4471.9,4471.3,7.79008603]
[1759608153340,0.01,4471.9,4471.3,38.32977103]
[1759608153546,0.01,4471.9,4471.3,37.39577538]
[1759608153754,0.01,4471.9,4471.3,37.10497538]
[1759608153959,0.01,4471.9,4471.3,39.38259436]
[1759608154281,0.01,4471.9,4471.3,38.63934036]
[1759608154585,0.01,4471.9,4471.3,31.65366336]
[1759608154785,0.012,4471.9,4471.3,10.16018036]
[1759608154958,0.4572,4471.4,4471.3,5.35956138]
[1759608155162,0.4572,4471.4,4471.3,7.88256138]
[1759608155373,0.4572,4471.4,4471.3,10.48094138]
[1759608155578,0.4572,4471.4,4471.3,7.99456138]
[1759608158289,0.4572,4471.4,4471.3,22.49456138]
[1759608158787,0.4572,4471.4,4471.3,25.08182238]
[1759608158988,0.4572,4471.4,4471.3,27.35944136]
[1759608159185,0.002,4471.4,4471.3,27.35944136]
[1759608159791,0.002,4471.4,4471.3,41.67825536]
[1759608160152,0.002,4471.4,4471.3,42.87451735]
[1759608160852,0.002,4471.4,4471.3,41.30339535]
[1759608161049,0.01,4472.9,4471.5,0.6336]
[1759608161248,0.01,4472.9,4472.8,2.869336]
[1759608161555,0.01,4472.9,4472.8,10.19760073]
[1759608161757,0.01,4472.9,4472.8,23.99017713]
[1759608161952,0.01,4472.9,4472.8,24.78632557]
[1759608162263,0.01,4472.9,4472.8,25.18104913]
[1759608163359,0.01,4472.9,4472.8,28.64693813]
[1759608163753,0.01,4472.9,4472.8,27.46781013]
[1759608164051,0.01,4472.9,4472.8,26.73781013]
[1759608164251,0.01,4472.9,4472.8,26.93926813]
[1759608164894,0.01,4472.9,4472.8,14.58945413]
[1759608165052,0.4652,4472.9,4472.8,19.34719013]
[1759608165254,0.4652,4472.9,4472.8,19.257736]
[1759608166897,0.4652,4472.9,4472.8,17.022]
[1759608167058,0.4652,4472.9,4472.8,19.257736]
[1759608170302,0.4652,4472.9,4472.8,14.5]
[1759608170478,0.4652,4472.9,4472.8,19.256736]
[1759608171178,0.4652,4472.9,4472.8,19.368736]
[1759608173162,0.4652,4472.9,4472.8,19.96507014]
[1759608173367,0.4672,4472.9,4472.8,19.96507014]
[1759608174203,0.4672,4472.9,4472.8,19.368736]
[1759608175429,0.4672,4472.9,4472.8,46.73125959]
[1759608175430,1e-08,4472.9,4472.8,46.73125959]
[1759608175632,1e-08,4472.9,4472.8,44.47676059]
[1759608176523,1e-08,4472.9,4472.8,45.67302258]
[1759608177089,1e-08,4472.9,4472.8,44.93166059]
[1759608178204,0.01,4473.9,4473.1,0.6336]
[1759608178418,0.01,4473.9,4473.6,0.6336]
[1759608178602,0.01,4473.9,4473.8,0.6336]
[1759608178922,0.01,4473.9,4473.8,17.36883626]
[1759608179531,0.4649,4473.9,4473.8,17.36883626]
[1759608180832,0.61366226,4476.9,4473.9,20.26048]
[1759608181018,0.4549,4475.3,4474.3,0.6336]
[1759608181193,0.4549,4475.3,4474.8,2.23473674]
[1759608181391,0.4549,4475.3,4474.8,19.25773674]
[1759608183929,0.0176408,4475.9,4474.8,19.25773674]
[1759608184234,0.4549,4475.1,4474.8,19.25773674]
[1759608185538,0.4549,4475.1,4474.8,19.36973674]
[1759608187009,0.4649,4474.9,4474.8,17.135]
[1759608187333,0.4649,4474.9,4474.8,19.36973674]
[1759608187738,0.01,4474.9,4474.8,19.36973674]
[1759608188175,0.01,4474.9,4474.8,20.44029471]
[1759608188481,0.01,4474.9,4474.8,21.83868065]
[1759608188622,0.01,4474.9,4474.8,36.4210845]
[1759608189163,0.01,4474.9,4474.8,38.65582124]
[1759608189323,0.01,4474.9,4474.8,38.60799924]
[1759608189522,0.01,4474.9,4474.8,38.60809924]
[1759608189961,0.01,4474.9,4474.8,18.021552]
[1759608190161,0.4649,4474.9,4474.8,17.025]
[1759608190360,0.4649,4474.9,4474.5,0.59624741]
[1759608190563,0.4549,4474.8,4474.4,2.99624741]
[1759608190724,0.4549,4474.7,4474.5,17.025]
[1759608190924,0.4549,4474.6,4474.5,16.9]
[1759608191152,0.4549,4474.6,4474.5,19.425]
[1759608191539,0.4549,4474.6,4474.5,21.65988657]
[1759608192066,0.4549,4474.6,4474.5,19.425]
[1759608192461,0.4549,4474.6,4474.5,2.4]
[1759608192663,0.4549,4474.6,4474.5,2.525]
[1759608194864,0.4549,4474.6,4474.2,14.5]
[1759608195053,0.4625408,4474.5,4473.7,0.59624741]
[1759608195253,2.23511046,4474.1,4473.8,2.527]
[1759608195425,0.4625408,4474.0,4473.3,0.59624741]
[1759608195626,0.4625408,4473.9,4473.4,2.529]
[1759608195824,0.4549,4473.8,4473.4,2.529]
[1759608196065,0.4625408,4473.7,4473.1,0.59624741]
[1759608196367,0.4625408,4473.7,4473.0,0.59624741]
[1759608196537,2.23532881,4473.7,4473.1,2.529]
[1759608196864,0.45971957,4473.6,4473.2,2.529]
[1759608197062,0.4549,4473.5,4473.2,2.529]
[1759608197266,0.45971957,4473.4,4472.9,0.59624741]
[1759608197436,0.00481957,4473.4,4473.0,2.528]
[1759608197639,0.4549,4473.3,4473.0,2.528]
[1759608197843,0.45971957,4473.2,4473.0,2.528]
[1759608198175,0.4549,4473.1,4473.0,2.528]
[1759608198468,0.45971957,4474.0,4473.0,5.6127503]
[1759608198770,0.112,4473.9,4473.3,2.3474433]
[1759608198967,0.112,4473.9,4473.4,4.76441521]
[1759608199332,0.45971957,4473.8,4473.4,2.529]
[1759608199662,0.4549,4473.7,4473.4,2.529]
[1759608199823,0.00481957,4473.6,4473.4,2.529]
[1759608200022,0.00481957,4473.8,4473.4,2.529]
[1759608200337,0.4549,4473.7,4473.4,2.529]
[1759608200544,0.00481957,4473.6,4473.4,2.529]
[1759608201168,0.11681957,4473.9,4473.4,4.76441447]
[1759608201470,0.4483,4474.6,4473.5,0.65595386]
[1759608201665,0.00481957,4474.5,4473.8,0.6336]
[1759608201882,0.00481957,4474.5,4474.1,0.112]
[1759608202037,0.00481957,4474.5,4474.2,2.529]
[1759608202242,0.4483,4474.4,4474.2,2.529]
[1759608202443,0.4483,4474.3,4474.2,2.529]
[1759608202986,0.4483,4474.3,4474.2,17.029]
[1759608204047,0.4483,4474.6,4474.2,17.029]
[1759608204248,0.45311957,4474.5,4474.2,17.029]
[1759608204467,0.4483,4474.4,4474.3,2.529]
[1759608208391,0.4483,4474.4,4474.3,2.528]
[1759608208595,2.68805609,4474.4,4474.3,2.528]
[1759608208796,2.80005609,4474.4,4474.3,2.528]
[1759608209998,2.80005609,4474.4,4473.7,0.70824741]
[1759608210200,0.4707,4474.3,4473.8,2.528]
[1759608210405,2.35175609,4474.4,4473.8,2.528]
[1759608210406,0.00481957,4474.2,4473.8,2.528]
[1759608210701,0.4707,4474.1,4473.8,2.528]
[1759608210902,0.47551957,4474.0,4473.8,2.528]
[1759608211089,0.00481957,4474.0,4473.8,2.528]
[1759608211297,0.4707,4473.9,4473.8,2.528]
[1759608212005,0.4707,4473.9,4473.6,0.001]
[1759608212006,0.4707,4473.9,4473.6,0.59724741]
[1759608212167,0.47551957,4473.8,4473.7,2.528]
[1759608212964,2.71075583,4473.8,4473.7,2.528]
[1759608213428,0.47551957,4473.8,4473.7,2.528]
[1759608213772,0.47551957,4473.8,4473.6,0.001]
[1759608214021,2.24005583,4473.8,4473.7,2.528]
[1759608214215,2.24005583,4473.8,4473.6,0.001]
[1759608214507,2.24005583,4473.8,4473.7,2.528]
[1759608215026,2.24005583,4473.8,4473.6,0.001]
[1759608215027,2.23528622,4473.7,4473.6,2.529]
[1759608215176,2.81798622,4473.7,4473.6,0.001]
[1759608216490,2.82280579,4473.7,4473.6,0.001]
[1759608217706,5.22280579,4473.7,4473.6,0.001]
[1759608217874,5.21798622,4473.7,4473.6,0.001]
[1759608219509,7.74598622,4473.7,4473.6,0.001]
[1759608220325,7.63398622,4473.7,4473.6,0.001]
[1759608222734,9.07398622,4473.7,4473.6,0.001]
[1759608222884,7.63398622,4473.7,4473.6,0.001]
[1759608223394,8.26758622,4473.7,4473.6,0.001]
[1759608229516,8.26958622,4473.7,4473.6,0.001]
[1759608229862,4.63728622,4473.7,4473.6,0.001]
[1759608230061,7.63498622,4473.7,4473.6,0.001]
[1759608230270,7.74698622,4473.7,4473.6,0.001]
[1759608231954,8.38058622,4473.7,4473.6,0.001]
[1759608243413,4.63583597,4472.6,4472.1,0.011]
[1759608243739,2.34803595,4472.2,4472.1,0.011]
[1759608243949,4.87985552,4472.2,4472.1,0.011]
[1759608244131,4.87503595,4472.2,4472.1,0.011]
[1759608247260,7.27503595,4472.2,4472.1,0.011]
[1759608247545,7.72223595,4472.2,4472.1,1e-08]
[1759608251414,7.27503595,4472.2,4472.1,1e-08]
[1759608252165,7.27503595,4472.2,4472.1,0.29080001]
[1759608255163,7.27503595,4472.2,4472.1,1e-08]
[1759608267513,7.27703595,4472.2,4472.1,1e-08]
[1759608269709,7.71903595,4472.2,4472.1,1e-08]
[1759608271715,12.01367566,4472.2,4472.1,1e-08]
[1759608271921,12.64727566,4472.2,4472.1,1e-08]
[1759608273619,12.64727566,4472.2,4471.0,0.001]
[1759608273620,2.23658607,4471.1,4471.0,1e-08]
[1759608273828,7.16158607,4471.1,4471.0,1e-08]
[1759608274118,11.92702578,4471.1,4471.0,1e-08]
[1759608274415,7.63238607,4471.1,4471.0,1e-08]
[1759608275302,11.92702578,4471.1,4471.0,1e-08]
[1759608275612,7.63238607,4471.1,4471.0,1e-08]
[1759608275977,8.26598607,4471.1,4471.0,1e-08]
[1759608279281,7.79518607,4471.1,4471.0,1e-08]
[1759608281327,7.16158607,4471.1,4471.0,1e-08]
[1759608283543,7.27358607,4471.1,4471.0,1e-08]
[1759608285746,7.27558607,4471.1,4471.0,1e-08]
[1759608293646,7.73578607,4471.1,4471.0,1e-08]
[1759608297660,7.27558607,4471.1,4471.0,1e-08]
[1759608299702,11.50558607,4471.1,4471.0,1e-08]
[1759608300084,11.96578607,4471.1,4471.0,1e-08]
[1759608300637,12.59938607,4471.1,4471.0,1e-08]
[1759608303377,12.13918607,4471.1,4471.0,1e-08]
[1759608303608,11.50558607,4471.1,4471.0,1e-08]
[1759608303807,11.50558607,4471.1,4471.0,0.29080001]
[1759608304114,11.50558607,4471.1,4471.0,1e-08]
[1759608305383,7.27558607,4471.1,4471.0,1e-08]
[1759608308918,7.27558607,4471.1,4471.0,0.29080001]
[1759608309468,7.27558607,4471.1,4471.0,1e-08]
[1759608311282,5.039,4471.1,4471.0,0.29080001]
[1759608311845,7.27558607,4471.1,4471.0,0.29080001]
[1759608316181,7.27558607,4471.1,4471.0,1e-08]
[1759608316344,2.35058607,4471.1,4471.0,1e-08]
[1759608316552,0.45534394,4472.9,4471.1,5.642585]
[1759608316553,0.002,4472.0,4471.1,5.642585]
[1759608316746,0.002,4472.0,4471.4,0.79533034]
[1759608316985,0.002,4472.0,4471.5,3.03167606]
[1759608317183,0.002,4472.0,4471.5,2.52714572]
[1759608317356,0.002,4472.0,4471.6,0.2908]
[1759608317560,0.002,4472.0,4471.6,0.88964113]
[1759608317778,0.002,4472.0,4471.7,0.59884113]
[1759608317949,0.002,4472.0,4471.8,0.31259654]
[1759608318146,0.002,4472.0,4471.6,2.83517097]
[1759608318503,0.002,4472.0,4471.8,0.2908]
[1759608319402,0.002,4472.0,4471.8,2.52701583]
[1759608319903,0.002,4472.0,4471.9,0.2908]
[1759608321469,0.002,4472.0,4471.9,2.52698596]
[1759608321669,0.002,4472.0,4471.9,0.77608024]
[1759608324683,0.002,4472.0,4471.9,3.0122662]
[1759608325413,0.002,4472.0,4471.9,3.10174355]
[1759608326113,0.002,4472.2,4472.0,2.86973595]
[1759608326312,0.002,4472.2,4472.1,2.86968595]
[1759608326487,0.002,4472.2,4472.1,4.02090548]
[1759608326878,0.002,4472.5,4472.4,2.23593596]
[1759608327083,0.002,4472.5,4472.4,4.76193596]
[1759608327319,0.002,4472.5,4472.4,5.16473596]
[1759608327521,0.002,4472.5,4472.4,19.77673596]
[1759608327812,0.002,4472.5,4472.4,22.05435494]
[1759608328200,0.002,4472.5,4472.4,21.95435494]
[1759608330622,0.002,4472.5,4472.4,7.45435494]
[1759608330821,0.002,4472.5,4472.4,5.17673596]
[1759608330996,0.002,4472.5,4472.4,19.67673596]
[1759608331197,0.4363,4473.8,4472.4,19.67673596]
[1759608331198,0.112,4473.8,4472.5,3.0336]
[1759608331529,0.112,4473.8,4472.8,2.869336]
[1759608331700,0.112,4473.8,4472.8,5.394336]
[1759608331903,0.112,4473.8,4472.8,4.0642332]
[1759608332426,0.112,4473.8,4472.8,6.96934824]
[1759608332601,0.112,4473.8,4473.4,2.23538667]
[1759608332793,0.112,4473.8,4473.5,2.525]
[1759608333386,0.112,4473.8,4473.5,4.7603758]
[1759608334432,0.112,4473.8,4473.5,2.525]
[1759608334935,0.5495,4473.8,4473.5,2.525]
[1759608335104,2.23545403,4473.4,4473.2,0.5495]
[1759608335307,0.4375,4473.3,4473.2,2.525]
[1759608335506,2.67303593,4473.3,4473.2,2.525]
[1759608338625,2.23555308,4473.2,4472.6,0.112]
[1759608338827,2.23555308,4473.2,4472.1,2.9844592]
[1759608338828,2.23553608,4473.2,4472.1,2.9844592]
[1759608339152,0.112,4472.9,4472.3,0.112]
[1759608339353,0.5495,4472.9,4472.3,0.112]
[1759608340053,0.5495,4472.9,4472.3,2.34797686]
[1759608340255,0.5495,4472.9,4472.4,2.23592149]
[1759608340457,0.5495,4472.9,4472.3,0.112]
[1759608340458,0.5495,4472.9,4472.3,2.34797342]
[1759608340759,0.5495,4472.9,4472.3,4.6255924]
[1759608340928,0.5495,4472.9,4472.3,2.38961898]
[1759608340929,0.112,4472.9,4472.3,2.38961898]
[1759608341133,0.112,4472.9,4472.5,2.23588328]
[1759608341358,0.112,4472.9,4472.6,2.524]
[1759608341521,0.112,4472.9,4472.6,4.75982502]
[1759608341948,0.112,4472.9,4472.6,2.23582502]
[1759608342149,0.112,4472.9,4472.7,2.524]
[1759608342753,0.112,4472.9,4472.8,2.235736]
[1759608343259,0.112,4472.9,4472.7,4.75977964]
[1759608345159,0.112,4472.9,4472.8,2.235736]
[1759608345461,0.112,4472.9,4472.7,4.75977319]
[1759608346626,0.112,4472.9,4472.7,2.524]
[1759608346960,0.112,4472.9,4472.7,4.75978583]
[1759608347261,0.112,4472.9,4472.7,3.11822003]
[1759608347762,0.112,4472.9,4472.7,5.35399535]
[1759608348367,0.5495,4472.9,4472.7,3.11822003]
[1759608349093,0.112,4472.9,4472.7,5.35398519]
[1759608350193,0.112,4472.9,4472.8,0.59422003]
[1759608350591,0.112,4472.9,4472.8,2.82995603]
[1759608350766,0.112,4472.9,4472.8,0.59422003]
[1759608351353,0.112,4472.9,4472.8,2.82995603]
[1759608353294,0.112,4472.9,4472.8,2.235736]
[1759608353803,0.468,4473.6,4472.7,2.524]
[1759608353976,0.112,4473.1,4472.9,2.83406504]
[1759608354176,0.112,4473.1,4473.0,3.12141504]
[1759608356572,0.468,4473.5,4473.0,3.12141504]
[1759608356797,0.112,4473.3,4473.0,3.12141504]
[1759608357324,0.112,4473.3,4473.1,0.59841504]
[1759608357489,0.112,4473.3,4473.2,2.523]
[1759608358500,2.3474861,4473.3,4473.2,2.523]
[1759608359208,0.112,4473.3,4473.2,2.523]
[1759608359408,2.3474861,4473.3,4473.2,2.523]
[1759608359795,2.8154861,4473.3,4473.2,2.523]
[1759608362028,0.58,4473.3,4473.2,2.523]
[1759608362385,2.8154861,4473.3,4473.2,2.523]
[1759608362587,0.112,4473.3,4473.2,2.523]
[1759608362788,0.112,4473.3,4473.2,3.12190521]
[1759608363029,0.112,4473.3,4473.2,2.523]
[1759608363236,0.112,4473.3,4473.2,3.08063076]
[1759608364510,0.112,4473.3,4473.2,2.523]
[1759608365146,0.112,4473.3,4473.2,3.31833034]
[1759608365311,0.112,4473.3,4473.2,2.523]
[1759608366349,0.002,4473.4,4473.2,2.523]
[1759608366653,0.002,4473.4,4473.2,3.31833034]
[1759608366811,0.002,4473.4,4473.3,1.87053631]
[1759608367014,0.002,4473.4,4473.3,4.10602241]
[1759608368040,0.002,4473.4,4473.3,1.87053631]
[1759608369717,0.002,4473.4,4473.3,3.12091273]
[1759608370137,0.002,4473.4,4473.3,2.522]
[1759608373838,0.002,4473.4,4473.2,0.79533034]
[1759608374046,0.47,4473.4,4473.3,2.522]
[1759608374245,0.002,4473.4,4473.3,2.522]
[1759608375154,0.47,4473.4,4473.3,2.522]
[1759608377736,0.002,4473.4,4473.3,2.522]
[1759608378133,0.002,4473.4,4473.3,2.85373303]
[1759608386574,0.002,4473.4,4473.3,2.522]
[1759608386749,0.4715,4473.4,4473.3,2.522]
[1759608388175,0.4715,4473.4,4473.2,0.79533034]
[1759608388367,0.4715,4473.4,4473.3,2.521]
[1759608389905,0.4685,4473.4,4473.3,2.521]
[1759608392163,0.4685,4473.4,4473.3,3.31633034]
[1759608393581,0.002,4473.4,4473.3,3.31633034]
[1759608393798,0.002,4473.4,4473.3,3.31533034]
[1759608394358,0.002,4473.4,4473.3,5.21751869]
[1759608394660,0.002,4473.4,4473.3,6.70131421]
[1759608394865,0.002,4473.8,4473.7,2.23528622]
[1759608395164,0.002,4473.8,4473.7,5.25374079]
[1759608395498,0.002,4473.8,4473.7,5.52218793]
[1759608395699,0.002,4473.8,4473.7,6.72100973]
[1759608396064,0.002,4473.8,4473.7,5.52218793]
[1759608396702,0.01,4473.9,4473.8,2.23523626]
[1759608396907,0.112,4474.7,4473.8,1.41443258]
[1759608397081,0.112,4474.7,4474.4,0.59849938]
[1759608397285,0.5785,4474.7,4474.5,2.521]
[1759608397495,0.4665,4474.6,4474.5,2.521]
[1759608401776,2.23488657,4474.5,4474.2,0.59849938]
[1759608401982,2.34698647,4474.3,4474.2,2.521]
[1759608402190,2.23508638,4474.1,4473.9,2.521]
[1759608402378,0.4665,4474.0,4473.9,2.521]
[1759608406079,0.4665,4474.0,4473.9,2.52]
[1759608406399,0.4665,4474.0,4473.8,0.59849938]
[1759608406608,0.4665,4474.0,4473.9,2.52]
[1759608407004,0.4665,4474.0,4473.8,0.59849938]
[1759608407215,0.4665,4474.0,4473.9,2.52]
[1759608408111,2.34699879,4474.3,4473.9,2.52]
[1759608408323,0.4665,4474.2,4473.9,2.52]
[1759608408474,0.4665,4474.1,4473.9,2.52]
[1759608408884,0.4665,4474.0,4473.8,0.59849938]
[1759608409099,2.2350964,4474.1,4473.9,2.52]
[1759608409517,2.34713634,4474.0,4473.9,2.52]
[1759608409692,0.5785,4474.0,4473.9,2.52]
[1759608410988,0.5785,4474.0,4473.7,3.11849938]
[1759608411188,0.4599,4473.9,4473.8,0.001]
[1759608419233,0.112,4474.0,4473.8,2.23621839]
[1759608419405,0.112,4474.0,4473.8,0.001]
[1759608419601,0.112,4474.0,4473.8,2.23621682]
[1759608419801,0.112,4474.0,4473.8,4.75621682]
[1759608420024,0.112,4474.0,4473.8,5.3547162]
[1759608420350,0.112,4474.0,4473.9,2.2351863]
[1759608420565,0.112,4474.0,4473.8,5.35472404]
[1759608420725,0.002,4474.6,4473.9,0.55783436]
[1759608420928,0.112,4474.3,4474.0,3.11868054]
[1759608421518,0.112,4474.3,4474.0,0.59868054]
[1759608421713,2.23503643,4474.2,4474.0,3.11868054]
[1759608422328,2.80690204,4474.3,4474.0,3.11868054]
[1759608422852,0.112,4474.3,4474.0,3.11868054]
[1759608423221,0.112,4474.3,4474.1,0.59868054]
[1759608423420,2.34699127,4474.3,4474.1,0.59868054]
[1759608423656,2.34699127,4474.3,4474.2,2.52]
[1759608424378,2.80689127,4474.3,4474.2,2.52]
[1759608426664,2.23508638,4474.1,4474.0,0.59868054]
[1759608426976,2.23508638,4474.1,4473.8,0.001]
[1759608426977,2.23508638,4474.1,4473.8,3.11968054]
[1759608427276,0.4599,4474.0,4473.8,3.11968054]
[1759608427493,2.69507014,4474.0,4473.8,3.11968054]
[1759608427668,2.2351863,4473.9,4473.8,3.11968054]
[1759608427976,2.6950863,4473.9,4473.8,3.11968054]
[1759608428477,2.6950863,4473.9,4473.8,0.59968054]
[1759608429248,2.6950863,4473.9,4473.8,0.001]
[1759608430155,2.6950863,4473.9,4473.8,0.60069967]
[1759608430356,2.8070863,4473.9,4473.8,0.001]
[1759608441181,5.3270863,4473.9,4473.8,0.001]
[1759608441982,7.7270863,4473.9,4473.8,0.001]
[1759608442209,7.81656165,4473.9,4473.8,0.001]
[1759608444852,2.23523626,4473.8,4473.3,1e-08]
[1759608445018,2.34743613,4473.4,4473.3,1e-08]
[1759608445219,7.26743613,4473.4,4473.3,1e-08]
[1759608445442,7.71733613,4473.4,4473.3,1e-08]
[1759608452326,7.80682549,4473.4,4473.3,1e-08]
[1759608460205,7.35692549,4473.4,4473.3,1e-08]
[1759608460769,7.78882549,4473.4,4473.3,1e-08]
[1759608466889,7.79082549,4473.4,4473.3,1e-08]
[1759608468128,7.35892549,4473.4,4473.3,1e-08]
[1759608468909,7.79082549,4473.4,4473.3,1e-08]
[1759608473909,7.35892549,4473.4,4473.3,1e-08]
[1759608474946,7.81802549,4473.4,4473.3,1e-08]
[1759608475716,7.35892549,4473.4,4473.3,1e-08]
[1759608476390,7.81802549,4473.4,4473.3,1e-08]
[1759608476861,7.35892549,4473.4,4473.3,1e-08]
[1759608480756,11.58892549,4473.4,4473.3,1e-08]
[1759608482253,12.04802549,4473.4,4473.3,1e-08]
[1759608490481,7.81802549,4473.4,4473.3,1e-08]
[1759608492369,7.35892549,4473.4,4473.3,1e-08]
[1759608496019,4.72692549,4473.4,4473.3,1e-08]
[1759608496207,7.35992549,4473.4,4473.3,0.29080001]
[1759608496719,7.35992549,4473.4,4473.3,1e-08]
[1759608497083,7.35992549,4473.4,4473.3,0.29080001]
[1759608498489,7.35992549,4473.4,4473.3,1e-08]
[1759608510458,11.58992549,4473.4,4473.3,1e-08]
[1759608522770,12.04532549,4473.4,4473.3,1e-08]
[1759608530181,12.04432549,4473.4,4473.3,1e-08]
[1759608531215,16.33709448,4473.4,4473.3,1e-08]
[1759608531417,17.573859,4473.4,4473.3,1e-08]
[1759608531578,16.97069448,4473.4,4473.3,1e-08]
[1759608531925,16.97069448,4473.4,4472.1,0.01]
[1759608532073,2.34803595,4472.2,4472.1,0.01]
[1759608532277,7.26803595,4472.2,4472.1,0.01]
[1759608532607,7.81734994,4472.2,4472.1,0.01]
[1759608537122,7.81734994,4472.2,4472.1,1e-08]
[1759608542490,7.35754994,4472.2,4472.1,1e-08]
[1759608542685,7.35854994,4472.2,4472.1,1e-08]
[1759608547959,4.83754994,4472.2,4472.1,1e-08]
[1759608548132,7.35854994,4472.2,4472.1,0.29080001]
[1759608549423,7.35854994,4472.2,4472.1,1e-08]
[1759608549626,7.35854994,4472.2,4472.1,0.29080001]
[1759608550219,5.12251399,4472.2,4472.1,0.00100001]
[1759608550446,5.12251399,4472.2,4472.1,0.29180001]
[1759608550720,7.35854994,4472.2,4472.1,0.29180001]
[1759608552047,11.58854994,4472.2,4472.1,0.29180001]
[1759608553328,9.263,4472.2,4472.1,0.29180001]
[1759608554344,11.49903595,4472.2,4472.1,0.29180001]
[1759608555361,9.263,4472.2,4472.1,0.29180001]
[1759608555571,6.742,4472.2,4472.1,0.29180001]
[1759608555755,8.97803595,4472.2,4472.1,0.29180001]
[1759608556856,6.742,4472.2,4472.1,0.29180001]
[1759608557883,8.97803595,4472.2,4472.1,0.29180001]
[1759608558376,6.742,4472.2,4472.1,0.29180001]
[1759608559572,4.342,4472.2,4472.1,0.29180001]
[1759608562699,6.57803595,4472.2,4472.1,0.29180001]
[1759608563264,6.57803595,4472.2,4472.1,0.58460002]
[1759608563460,6.57803595,4472.2,4472.1,0.29380002]
[1759608564621,4.342,4472.2,4472.1,0.29380002]
[1759608567140,6.57803595,4472.2,4472.1,0.29380002]
[1759608567740,4.342,4472.2,4472.1,0.29380002]
[1759608567955,4.344,4472.2,4472.1,0.29380002]
[1759608576719,4.344,4472.2,4472.1,0.00100001]
[1759608580882,4.344,4472.2,4472.1,0.02336086]
[1759608581297,4.344,4472.2,4472.1,0.00100001]
[1759608583307,4.344,4472.2,4472.1,0.02336086]
[1759608585657,4.344,4472.2,4472.1,0.29480003]
[1759608586419,4.344,4472.2,4472.1,0.00100001]
[1759608586655,4.8009,4472.2,4472.1,0.00100001]
[1759608587165,7.03693595,4472.2,4472.1,0.00100001]
[1759608587465,4.8009,4472.2,4472.1,0.00100001]
[1759608588165,7.03693595,4472.2,4472.1,0.00100001]
[1759608594259,4.8009,4472.2,4472.1,0.00100001]
[1759608594766,7.03693595,4472.2,4472.1,0.00100001]
[1759608597456,6.58003595,4472.2,4472.1,0.00100001]
[1759608601586,7.02373595,4472.2,4472.1,0.00100001]
[1759608611640,6.58003595,4472.2,4472.1,0.00100001]
[1759608615673,4.344,4472.2,4472.1,0.00100001]
[1759608621639,0.002,4472.2,4472.1,2.8114021]
[1759608621823,0.002,4472.2,4472.1,3.60940127]
[1759608622025,0.002,4472.2,4472.1,1.37331532]
[1759608622286,0.002,4472.2,4472.1,15.07531615]